bitfinex/quotes_ETHUSD_20250708
["timestamp","ask_amount","ask_price","bid_price","bid_amount"]
[1751993057356,0.1936,2578.7,2578.6,0.001]
[1751993058222,0.1936,2578.7,2578.6,1.77695595]
[1751993059710,0.1936,2578.7,2578.6,0.001]
[1751993060750,0.24536601,2578.7,2578.6,0.001]
[1751993061352,0.24536601,2578.7,2578.6,3.87907337]
[1751993061558,6.24036601,2578.7,2578.6,4.23887968]
[1751993061763,6.24036601,2578.7,2578.6,0.36080631]
[1751993062068,0.05176601,2578.7,2578.6,5.8357132]
[1751993063438,5.995,2578.9,2578.6,5.8357132]
[1751993063439,5.79442065,2578.9,2578.7,3.87786574]
[1751993063646,5.79442065,2578.9,2578.8,1.74190772]
[1751993063949,5.994,2578.9,2578.8,5.61967208]
[1751993064117,5.994,2578.9,2578.8,1.74190772]
[1751993066045,5.994,2578.9,2578.8,1.38233961]
[1751993066242,0.24206839,2579.0,2578.8,5.26010992]
[1751993066554,5.994,2579.0,2578.9,1.38233961]
[1751993069542,9.91994027,2579.0,2578.9,1.38233961]
[1751993069864,9.87147188,2579.0,2578.9,1.38233961]
[1751993070058,10.06507188,2579.0,2578.9,1.38233961]
[1751993071555,6.1876,2579.0,2578.6,5.60691422]
[1751993071754,3.87890182,2579.4,2578.9,3.87748448]
[1751993071953,3.87890182,2579.4,2579.0,3.87745048]
[1751993071954,5.992,2579.3,2579.0,3.87745048]
[1751993072156,5.992,2579.3,2579.0,4.07105048]
[1751993072663,4.0724744,2579.4,2579.0,0.1936]
[1751993072966,5.992,2579.2,2579.0,0.1936]
[1751993073168,5.992,2579.2,2579.0,1.24451961]
[1751993073375,5.992,2579.2,2579.0,5.12191608]
[1751993073575,0.24406088,2579.4,2579.0,5.12191608]
[1751993073748,5.992,2579.2,2579.0,1.24451961]
[1751993074127,5.992,2579.2,2579.0,5.12198846]
[1751993074333,5.992,2579.2,2579.0,1.24451961]
[1751993074736,5.992,2579.2,2579.0,0.1936]
[1751993075278,5.991,2579.2,2579.0,0.1936]
[1751993075460,5.991,2579.2,2579.0,4.07099713]
[1751993076066,0.002,2579.4,2579.3,3.87702089]
[1751993076273,0.002,2579.4,2579.3,12.34651252]
[1751993076480,0.002,2579.4,2579.3,12.54011252]
[1751993076654,0.002,2579.4,2579.3,22.21660197]
[1751993077253,0.002,2579.4,2579.3,16.22560197]
[1751993077561,0.002,2579.4,2579.3,22.21560197]
[1751993077933,0.36487689,2579.4,2579.3,22.21560197]
[1751993078139,0.36487689,2579.4,2579.3,14.3979405]
[1751993078362,0.36487689,2579.4,2579.3,8.4079405]
[1751993078580,0.36487689,2579.4,2579.3,10.13475013]
[1751993078782,0.36487689,2579.4,2579.3,3.30301906]
[1751993078986,0.36487689,2579.4,2579.3,1.57619077]
[1751993079187,0.36487689,2579.4,2579.3,0.58613679]
[1751993079984,0.36487689,2579.4,2579.0,16.1836]
[1751993079985,4.24176067,2579.4,2579.0,16.1836]
[1751993080289,0.36287689,2579.3,2579.0,0.1936]
[1751993080585,0.36287689,2579.2,2579.0,6.1826]
[1751993080748,0.36287689,2579.1,2579.0,6.1826]
[1751993080949,0.36287689,2579.1,2579.0,10.06007188]
[1751993081292,0.36287689,2579.1,2579.0,5.59590593]
[1751993081447,0.36287689,2579.1,2579.0,1.71843405]
[1751993081647,0.36287689,2579.1,2579.0,0.1936]
[1751993082074,0.36287689,2579.1,2579.0,4.07107188]
[1751993082409,0.36287689,2579.1,2579.0,0.1936]
[1751993082582,0.36287689,2579.1,2579.0,4.07107188]
[1751993082962,0.36287689,2579.1,2579.0,0.1936]
[1751993083952,0.36287689,2579.1,2578.7,3.87789032]
[1751993084285,0.36287689,2579.0,2578.8,1.33007109]
[1751993084462,0.36287689,2578.9,2578.8,1.33007109]
[1751993084662,0.36255469,2578.9,2578.8,1.33007109]
[1751993085079,0.36255469,2578.9,2578.7,0.1936]
[1751993085282,0.36255469,2578.8,2578.7,3.65796188]
[1751993085651,3.87758877,2579.0,2578.7,0.1936]
[1751993085851,4.70808877,2579.0,2578.7,0.1936]
[1751993086268,0.8305,2579.0,2578.6,6.1816]
[1751993086468,0.8305,2579.0,2578.7,0.35954472]
[1751993086679,0.8305,2579.0,2578.6,10.05960015]
[1751993086895,0.8305,2579.0,2578.5,0.7806]
[1751993086896,3.92614605,2578.9,2578.5,0.7806]
[1751993087199,3.87784056,2578.8,2578.5,0.001]
[1751993087802,3.87784056,2578.8,2578.6,0.35969934]
[1751993088097,2.94608906,2578.8,2578.7,0.35969934]
[1751993088409,3.5965681,2578.8,2578.7,0.35969934]
[1751993089193,3.64504025,2578.8,2578.7,0.35969934]
[1751993090099,0.69895119,2578.8,2578.7,0.35969934]
[1751993090269,4.57672379,2578.8,2578.7,0.35969934]
[1751993090675,4.57672379,2578.8,2578.5,0.001]
[1751993091184,4.57672379,2578.8,2578.6,1.38222358]
[1751993091366,4.57672379,2578.8,2578.7,1.38222358]
[1751993091569,4.57672379,2578.8,2578.7,1.74204751]
[1751993092913,5.37682379,2578.8,2578.7,1.74204751]
[1751993094268,5.73968894,2578.8,2578.7,1.74204751]
[1751993095086,5.73968894,2578.8,2578.7,0.35982393]
[1751993095305,15.73968894,2578.8,2578.7,0.35982393]
[1751993095507,15.69121679,2578.8,2578.7,0.35982393]
[1751993096390,21.67721679,2578.8,2578.7,0.35982393]
[1751993097477,11.67721679,2578.8,2578.7,0.35982393]
[1751993100678,21.67721679,2578.8,2578.7,0.35982393]
[1751993100879,28.42516549,2578.8,2578.7,0.35982393]
[1751993101309,3.87792298,2578.7,2578.6,0.001]
[1751993101616,5.964383,2578.7,2578.6,0.36062072]
[1751993102006,6.32680567,2578.7,2578.6,0.001]
[1751993104716,17.08493115,2578.7,2578.6,0.001]
[1751993104941,17.03645712,2578.7,2578.6,0.001]
[1751993105118,23.02145712,2578.7,2578.6,0.001]
[1751993105423,23.0213928,2578.7,2578.5,0.001]
[1751993105724,13.87822377,2578.5,2578.4,0.001]
[1751993105922,21.17803042,2578.5,2578.4,0.001]
[1751993107800,21.1778106,2578.5,2578.4,0.001]
[1751993107996,21.53979743,2578.5,2578.4,0.001]
[1751993108326,23.02131827,2578.5,2578.4,0.001]
[1751993108502,22.65933144,2578.5,2578.4,0.001]
[1751993109399,21.41572465,2578.0,2577.9,0.001]
[1751993109588,27.76171148,2578.0,2577.9,0.001]
[1751993110412,21.77771148,2578.0,2577.9,0.001]
[1751993110620,28.41319052,2578.0,2577.9,0.001]
[1751993111020,15.68024182,2578.0,2577.9,0.001]
[1751993111222,20.22496278,2578.0,2577.9,0.001]
[1751993111420,10.22496278,2578.0,2577.9,0.001]
[1751993111624,4.24096278,2578.0,2577.9,0.001]
[1751993111808,3.87889546,2578.1,2577.9,0.001]
[1751993112012,9.86297595,2578.0,2577.9,0.001]
[1751993112533,5.984,2578.0,2577.9,0.001]
[1751993112833,6.03248719,2578.0,2577.9,0.001]
[1751993113340,9.91146314,2578.0,2577.9,0.001]
[1751993113636,9.86297595,2578.0,2577.9,0.001]
[1751993115494,5.984,2578.0,2577.9,0.001]
[1751993116333,0.7663,2578.4,2577.9,0.001]
[1751993116522,0.36217856,2578.3,2578.1,3.87880355]
[1751993116726,0.1936,2578.3,2578.2,0.85541633]
[1751993117612,0.1936,2578.3,2578.0,0.7964]
[1751993117613,4.07220689,2578.3,2578.0,0.7964]
[1751993117815,6.1766,2578.3,2578.0,0.7964]
[1751993118908,3.92715847,2578.2,2578.1,0.35969756]
[1751993119246,10.67510717,2578.2,2578.1,0.35969756]
[1751993119436,10.98895491,2578.2,2578.1,0.35969756]
[1751993120048,3.87897595,2578.0,2577.9,0.001]
[1751993120220,9.91046314,2578.0,2577.9,0.001]
[1751993120420,9.86197595,2578.0,2577.9,0.36088894]
[1751993120745,5.983,2578.0,2577.9,0.36088894]
[1751993121135,5.983,2578.0,2577.9,0.001]
[1751993121739,9.86197595,2578.0,2577.9,0.001]
[1751993121939,5.983,2578.0,2577.9,0.001]
[1751993123314,9.86197595,2578.0,2577.9,0.001]
[1751993124437,11.23605658,2578.0,2577.9,0.001]
[1751993124655,9.86197595,2578.0,2577.9,0.001]
[1751993125235,10.22482865,2578.0,2577.9,0.001]
[1751993125737,5.983,2578.0,2577.9,0.001]
[1751993126316,0.04848531,2578.1,2577.9,4.68072642]
[1751993126652,6.1756,2578.1,2577.9,4.68072642]
[1751993127240,6.1756,2578.1,2577.9,0.8016]
[1751993128755,3.92746314,2578.0,2577.9,0.001]
[1751993128960,4.29057818,2578.0,2577.9,0.001]
[1751993129137,11.03852688,2578.0,2577.9,0.001]
[1751993129455,10.99003969,2578.0,2577.9,0.001]
[1751993129832,4.24209099,2578.0,2577.9,0.001]
[1751993130016,4.29057818,2578.0,2577.9,0.001]
[1751993130539,4.24209099,2578.0,2577.9,0.001]
[1751993130748,10.22309099,2578.0,2577.9,0.001]
[1751993132161,10.22309099,2578.0,2577.9,0.36187651]
[1751993132329,11.70972521,2578.0,2577.9,0.36187651]
[1751993132654,11.70995279,2578.0,2577.9,0.36194192]
[1751993132823,23.93292345,2578.0,2577.9,1e-08]
[1751993133158,23.93292345,2578.0,2577.6,0.001]
[1751993133159,14.70682739,2577.7,2577.6,0.001]
[1751993133458,27.79911871,2577.7,2577.6,0.001]
[1751993133644,29.19473728,2577.7,2577.6,0.001]
[1751993134857,22.44678858,2577.7,2577.6,0.001]
[1751993135637,5.63838858,2577.7,2577.6,0.001]
[1751993135849,11.66688142,2577.7,2577.6,0.001]
[1751993136053,11.61838858,2577.7,2577.6,0.001]
[1751993136256,1.75896119,2577.7,2577.6,0.001]
[1751993136565,1.75896119,2577.7,2577.6,3.8805779]
[1751993136566,0.55694262,2577.7,2577.6,3.8805779]
[1751993136862,0.36334262,2577.7,2577.6,0.47212478]
[1751993137479,0.36334262,2577.7,2577.6,4.35170268]
[1751993137964,6.1746,2577.8,2577.6,0.47212478]
[1751993138165,6.1746,2577.8,2577.6,4.35167714]
[1751993138329,6.1746,2577.8,2577.6,0.47212478]
[1751993140571,6.1746,2577.8,2577.7,3.87942739]
[1751993140735,0.1936,2577.8,2577.6,4.35167513]
[1751993140940,0.1936,2577.8,2577.6,4.371142]
[1751993141672,0.1936,2577.8,2577.6,0.47212478]
[1751993142636,0.1936,2577.8,2577.6,0.001]
[1751993142969,9.90792023,2577.7,2577.6,0.001]
[1751993143156,10.22259971,2577.7,2577.6,0.001]
[1751993144152,11.00309971,2577.7,2577.6,0.001]
[1751993145167,11.33387392,2577.7,2577.6,0.001]
[1751993145374,12.52441677,2577.7,2577.6,0.001]
[1751993145551,12.85514518,2577.7,2577.6,0.001]
[1751993145751,24.24968253,2577.7,2577.6,0.001]
[1751993146161,23.91895412,2577.7,2577.6,0.001]
[1751993147387,23.91881296,2577.7,2577.6,0.001]
[1751993147548,23.91781296,2577.7,2577.6,0.001]
[1751993148346,1.75756851,2577.7,2577.6,0.001]
[1751993148575,5.979,2577.8,2577.6,0.001]
[1751993148742,5.979,2577.7,2577.6,0.001]
[1751993148947,6.1726,2577.7,2577.6,0.001]
[1751993150146,0.1936,2577.7,2577.6,0.001]
[1751993150342,6.1726,2577.7,2577.6,0.001]
[1751993150875,10.10052023,2577.7,2577.6,0.001]
[1751993151076,22.21090779,2577.7,2577.6,0.001]
[1751993151251,22.57388737,2577.7,2577.6,0.001]
[1751993151878,23.96806437,2577.7,2577.6,0.001]
[1751993156355,23.96807358,2577.7,2577.6,0.001]
[1751993160096,31.89707358,2577.7,2577.6,0.001]
[1751993161003,25.15819328,2577.7,2577.6,0.001]
[1751993161178,29.37520439,2577.7,2577.6,0.001]
[1751993161395,29.73823119,2577.7,2577.6,0.001]
[1751993167003,30.52213119,2577.7,2577.6,0.001]
[1751993167209,30.52221865,2577.7,2577.6,0.001]
[1751993175187,22.59221865,2577.7,2577.6,0.001]
[1751993175381,24.72421853,2577.7,2577.6,0.001]
[1751993175608,22.59221865,2577.7,2577.6,0.001]
[1751993176298,22.59272415,2577.7,2577.6,0.001]
[1751993176487,16.61472415,2577.7,2577.6,0.001]
[1751993176690,22.59172415,2577.7,2577.6,0.001]
[1751993176907,26.59172415,2577.7,2577.6,0.001]
[1751993178333,22.59172415,2577.7,2577.6,0.001]
[1751993179318,16.61475114,2577.7,2577.6,0.001]
[1751993179619,22.59175114,2577.7,2577.6,0.001]
[1751993182199,22.5918889,2577.7,2577.6,0.001]
[1751993184000,22.5918889,2577.7,2577.6,1e-08]
[1751993184001,25.45973107,2577.7,2577.6,1e-08]
[1751993184630,26.62390592,2577.7,2577.6,1e-08]
[1751993185140,14.4295779,2577.6,2577.5,1e-08]
[1751993185312,20.45475643,2577.6,2577.5,1e-08]
[1751993185504,20.97273941,2577.6,2577.5,1e-08]
[1751993186246,20.97270086,2577.6,2577.5,1e-08]
[1751993186911,15.21507894,2577.4,2577.3,1e-08]
[1751993187112,33.48513081,2577.4,2577.3,1e-08]
[1751993187613,35.81203516,2577.4,2577.3,1e-08]
[1751993187845,33.48513081,2577.4,2577.3,1e-08]
[1751993188332,33.77531934,2577.4,2577.3,1e-08]
[1751993188731,33.77531934,2577.4,2577.0,1e-08]
[1751993188732,5.2538306,2577.1,2577.0,1e-08]
[1751993189041,24.58100075,2577.1,2577.0,1e-08]
[1751993189351,24.53249662,2577.1,2577.0,1e-08]
[1751993191248,24.53199501,2577.1,2577.0,1e-08]
[1751993192046,28.53199501,2577.1,2577.0,1e-08]
[1751993192246,28.72875141,2577.1,2577.0,1e-08]
[1751993195227,5.23543176,2576.9,2576.8,1e-08]
[1751993195428,23.60461782,2576.9,2576.8,1e-08]
[1751993195631,23.55610993,2576.9,2576.8,1e-08]
[1751993197921,27.55610993,2576.9,2576.8,1e-08]
[1751993198859,34.31458973,2576.9,2576.8,1e-08]
[1751993203753,3.88108359,2576.6,2576.5,1e-08]
[1751993203957,30.00470311,2576.6,2576.5,1e-08]
[1751993204261,29.95618957,2576.6,2576.5,1e-08]
[1751993205941,22.38970977,2576.6,2576.5,1e-08]
[1751993206143,21.61281769,2576.6,2576.5,1e-08]
[1751993207132,29.14399749,2576.6,2576.5,1e-08]
[1751993207533,29.14399749,2576.6,2576.0,0.001]
[1751993207534,15.39753423,2576.5,2576.4,1e-08]
[1751993207839,17.15426833,2576.5,2576.4,1e-08]
[1751993208358,21.15426833,2576.5,2576.4,1e-08]
[1751993208564,22.69901139,2576.5,2576.4,1e-08]
[1751993209155,22.69898945,2576.5,2576.4,1e-08]
[1751993211868,22.69898945,2576.5,2576.0,0.001]
[1751993211869,21.98921668,2576.1,2576.0,1e-08]
[1751993212170,28.32675184,2576.1,2576.0,1e-08]
[1751993212470,22.75019496,2576.1,2576.0,1e-08]
[1751993212709,20.80662886,2576.1,2576.0,1e-08]
[1751993212836,20.21937204,2576.1,2576.0,1e-08]
[1751993214166,14.24437204,2576.1,2576.0,1e-08]
[1751993214343,20.21937204,2576.1,2576.0,1e-08]
[1751993215161,19.85683688,2576.1,2576.0,1e-08]
[1751993215344,20.21953841,2576.1,2576.0,1e-08]
[1751993217395,14.24453841,2576.1,2576.0,1e-08]
[1751993217670,10.21953841,2576.1,2576.0,0.77010001]
[1751993217875,13.88175314,2576.2,2576.0,0.77010001]
[1751993218181,6.02352296,2576.1,2576.0,0.77010001]
[1751993218552,0.04852296,2576.1,2576.0,0.77010001]
[1751993218755,1.44373472,2576.2,2576.1,0.822]
[1751993218954,10.26721547,2576.2,2576.1,0.822]
[1751993219274,11.61390805,2576.2,2576.1,0.822]
[1751993219669,7.73222185,2576.2,2576.1,0.822]
[1751993220063,11.61390805,2576.2,2576.1,0.822]
[1751993220367,6.3370082,2576.2,2576.1,0.822]
[1751993220884,10.26721547,2576.2,2576.1,0.822]
[1751993221083,10.2186944,2576.2,2576.1,0.822]
[1751993221281,0.3630082,2576.2,2576.1,0.822]
[1751993221498,0.3630082,2576.2,2576.1,1.29251218]
[1751993221499,6.3370082,2576.2,2576.1,1.29251218]
[1751993222183,5.974,2576.2,2576.1,1.29251218]
[1751993222587,5.974,2576.2,2576.1,0.47051218]
[1751993222770,5.974,2576.2,2576.1,1.23761218]
[1751993224887,6.33719956,2576.2,2576.1,0.7671]
[1751993225095,5.974,2576.2,2576.1,0.7671]
[1751993225304,5.973,2576.2,2576.1,0.7671]
[1751993228598,3.48201702,2577.1,2576.4,0.7611]
[1751993228780,3.88114264,2576.6,2576.4,0.7611]
[1751993229004,11.66109371,2576.5,2576.4,0.7611]
[1751993229194,11.61257829,2576.5,2576.4,0.7611]
[1751993230310,10.21643439,2576.5,2576.4,0.7611]
[1751993230674,6.33520016,2576.5,2576.4,0.7611]
[1751993230882,5.972,2576.5,2576.4,0.7611]
[1751993231203,6.1656,2576.5,2576.4,5.10674485]
[1751993231403,0.1936,2576.5,2576.4,1.22536234]
[1751993231605,6.1656,2576.5,2576.4,1.22536234]
[1751993232107,0.1936,2576.5,2576.4,1.22536234]
[1751993232278,6.1656,2576.5,2576.4,0.7611]
[1751993232478,10.09534965,2576.5,2576.4,0.7611]
[1751993232706,10.04683423,2576.5,2576.4,0.7611]
[1751993233099,6.1656,2576.5,2576.4,0.7611]
[1751993233606,6.1656,2576.5,2576.4,1.22537854]
[1751993233905,6.1646,2576.5,2576.4,0.7611]
[1751993234212,0.1936,2576.5,2576.4,4.64248487]
[1751993234399,10.0,2576.9,2576.5,0.8196]
[1751993234400,3.88090807,2576.8,2576.5,0.8196]
[1751993234580,10.04556037,2576.7,2576.5,0.8196]
[1751993234781,6.1646,2576.7,2576.5,0.8196]
[1751993235588,6.1646,2576.7,2576.5,5.55906173]
[1751993235994,6.1646,2576.7,2576.5,1.67784342]
[1751993236182,6.1646,2576.7,2576.5,5.55906881]
[1751993236897,6.1646,2576.7,2576.5,1.67784342]
[1751993237579,6.1646,2576.7,2576.5,5.55907461]
[1751993237774,6.1646,2576.7,2576.5,1.67784342]
[1751993240919,6.1646,2576.7,2576.5,5.55907494]
[1751993241307,0.1936,2576.7,2576.6,0.55590749]
[1751993241482,5.97,2576.7,2576.6,3.88108359]
[1751993241688,5.97,2576.7,2576.5,4.70076935]
[1751993242009,5.97,2576.7,2576.5,0.8196]
[1751993242212,9.85100348,2576.7,2576.5,0.8196]
[1751993242408,10.04460348,2576.7,2576.5,0.8196]
[1751993242731,10.04459761,2576.7,2576.5,0.8196]
[1751993242933,0.04851354,2576.6,2576.3,0.8059]
[1751993243236,9.85025438,2576.5,2576.3,0.8059]
[1751993244444,9.85025438,2576.5,2576.1,0.8059]
[1751993244445,0.1936,2576.3,2576.1,0.8059]
[1751993244738,5.969,2576.2,2576.1,0.8059]
[1751993244913,9.8506862,2576.2,2576.0,1e-08]
[1751993245100,0.1936,2576.1,2576.0,1e-08]
[1751993247820,10.09195984,2576.1,2576.0,1e-08]
[1751993248025,10.04343688,2576.1,2576.0,1e-08]
[1751993248951,6.1616,2576.1,2576.0,1e-08]
[1751993249554,6.1616,2576.1,2576.0,0.80310001]
[1751993249860,3.8813883,2576.4,2576.0,0.80310001]
[1751993249861,5.968,2576.4,2576.2,0.8031]
[1751993250051,5.968,2576.5,2576.3,3.88145224]
[1751993250226,0.36334715,2576.4,2576.3,3.88145224]
[1751993250427,0.36334715,2576.4,2576.3,4.68693684]
[1751993250652,0.1936,2576.6,2576.4,4.6504135]
[1751993250853,6.33133239,2576.5,2576.4,4.6504135]
[1751993252227,5.968,2576.5,2576.4,4.6504135]
[1751993253866,0.002,2576.7,2576.5,3.88123423]
[1751993254044,5.968,2576.6,2576.5,4.81494746]
[1751993255371,5.968,2576.6,2576.5,3.88123423]
[1751993256147,5.968,2576.6,2576.4,0.78861054]
[1751993256148,5.968,2576.6,2576.4,4.65041323]
[1751993256348,5.968,2576.6,2576.5,3.88123423]
[1751993256858,5.968,2576.6,2576.4,4.65043897]
[1751993257746,5.967,2576.6,2576.4,4.65043897]
[1751993257966,5.967,2576.6,2576.5,3.88123423]
[1751993258377,5.967,2576.6,2576.4,4.65042455]
[1751993259145,5.967,2576.6,2576.4,5.80526215]
[1751993260071,0.002,2576.7,2576.5,3.88115428]
[1751993260273,5.966,2576.6,2576.5,3.88115428]
[1751993262184,5.966,2576.6,2576.4,5.80527375]
[1751993263082,5.966,2576.6,2576.4,5.03617375]
[1751993263244,5.966,2576.6,2576.5,3.88123423]
[1751993264269,5.966,2576.6,2576.4,5.03616763]
[1751993264588,5.966,2576.6,2576.5,3.88123423]
[1751993265690,5.968,2576.6,2576.5,3.88123423]
[1751993266451,5.967,2576.6,2576.5,3.88123423]
[1751993270002,0.002,2576.6,2576.5,5.50260384]
[1751993270310,0.002,2576.6,2576.5,5.69620384]
[1751993270487,0.002,2576.6,2576.5,5.71571362]
[1751993272301,0.002,2576.6,2576.5,6.26571362]
[1751993272600,0.002,2577.3,2577.2,4.68648004]
[1751993272800,0.36529348,2577.3,2577.2,18.28512134]
[1751993272965,0.002,2577.3,2577.2,18.81563791]
[1751993273169,0.002,2577.3,2577.2,19.00923791]
[1751993274785,0.002,2577.3,2577.2,29.00923791]
[1751993276068,0.002,2577.3,2577.2,29.00823791]
[1751993276766,0.002,2577.3,2577.2,29.00723791]
[1751993278593,0.002,2577.3,2577.2,28.45723791]
[1751993279097,0.002,2577.3,2577.2,22.49523791]
[1751993279310,0.002,2577.3,2577.2,28.45623791]
[1751993281172,0.002,2577.3,2577.2,29.00623791]
[1751993283115,0.002,2577.3,2577.2,23.04523791]
[1751993283424,0.002,2577.3,2577.2,29.00523791]
[1751993283596,1e-08,2577.3,2577.2,29.00523791]
[1751993287178,1e-08,2577.3,2577.2,29.00423791]
[1751993287582,1e-08,2577.3,2577.2,16.28675811]
[1751993287783,1e-08,2577.3,2577.2,29.00423791]
[1751993290311,1e-08,2577.3,2577.2,23.04523791]
[1751993290630,1e-08,2577.3,2577.2,17.64693791]
[1751993292416,1e-08,2577.3,2577.2,18.19693791]
[1751993292602,1e-08,2577.3,2577.2,18.95763791]
[1751993301834,1e-08,2577.3,2577.2,28.95763791]
[1751993302953,1e-08,2577.3,2577.2,32.41031284]
[1751993303637,1e-08,2577.3,2577.2,28.95763791]
[1751993304746,1e-08,2577.8,2577.7,14.65302739]
[1751993304947,1e-08,2577.8,2577.7,30.66373754]
[1751993305112,1e-08,2577.8,2577.7,31.21373754]
[1751993305309,0.002,2578.0,2577.9,15.23322642]
[1751993305310,1e-08,2578.0,2577.9,15.23322642]
[1751993305542,1e-08,2578.0,2577.9,31.6054162]
[1751993305849,1e-08,2578.0,2577.9,28.14130622]
[1751993306026,1e-08,2578.0,2577.9,31.9901987]
[1751993306222,1e-08,2578.0,2577.9,35.45031716]
[1751993306922,1e-08,2578.0,2577.9,35.73611187]
[1751993307123,1e-08,2578.0,2577.9,32.27599341]
[1751993309643,1e-08,2578.0,2577.9,35.73611187]
[1751993309844,1e-08,2578.0,2577.9,32.27599341]
[1751993310214,1e-08,2578.0,2577.9,35.72788858]
[1751993311142,1e-08,2578.0,2577.9,35.72758939]
[1751993311343,1e-08,2578.0,2577.9,46.34983441]
[1751993312353,0.0736752,2579.0,2578.9,14.42762224]
[1751993312648,0.002,2579.1,2579.0,13.87747188]
[1751993312836,0.002,2579.4,2579.3,10.63550069]
[1751993313043,0.002,2579.4,2579.3,17.35720069]
[1751993313358,0.002,2579.4,2579.3,17.55080069]
[1751993313534,0.002,2579.4,2579.3,19.74859501]
[1751993314041,0.002,2579.4,2579.3,20.29859501]
[1751993314517,0.002,2579.4,2579.3,13.57689501]
[1751993314720,0.002,2579.4,2579.3,12.77041521]
[1751993314978,0.002,2579.4,2579.3,6.81841521]
[1751993315249,0.002,2579.4,2579.3,12.77041521]
[1751993317436,0.002,2579.4,2579.3,8.34239432]
[1751993317624,0.002,2579.4,2579.3,6.1446]
[1751993318018,4.66837059,2579.4,2579.3,0.1936]
[1751993318261,0.7895,2579.3,2578.9,10.02211854]
[1751993318553,0.7895,2579.3,2579.0,0.01941422]
[1751993318759,4.66653385,2579.3,2579.0,0.01941422]
[1751993318920,4.66653385,2579.3,2578.9,0.1936]
[1751993319124,0.7895,2579.3,2579.0,0.01941422]
[1751993321474,4.07251237,2579.4,2579.0,0.01941422]
[1751993321679,0.8105,2579.2,2579.0,3.89687648]
[1751993322282,0.8105,2579.2,2579.0,0.01941122]
[1751993322764,3.87739479,2579.1,2578.6,3.87799687]
[1751993323010,0.7765,2579.0,2578.7,6.1436]
[1751993323738,0.7765,2579.0,2578.3,10.0]
[1751993323739,0.7765,2578.8,2578.3,10.0]
[1751993323972,4.65441652,2578.8,2578.5,0.1936]
[1751993324377,3.8775153,2579.0,2578.1,10.0]
[1751993324378,0.7765,2578.6,2578.1,3.87871453]
[1751993324577,0.9701,2578.6,2578.2,10.02220443]
[1751993325359,0.9701,2578.6,2578.3,3.87849829]
[1751993325778,4.84817839,2578.6,2578.2,4.07226231]
[1751993325983,0.9701,2578.6,2578.2,4.07225538]
[1751993326144,0.9701,2578.6,2578.2,4.09169667]
[1751993326344,0.9701,2578.6,2578.2,0.21304129]
[1751993326647,0.9701,2578.6,2578.2,1.82934542]
[1751993326849,0.9701,2578.6,2578.3,3.87839393]
[1751993327489,0.9701,2578.6,2578.2,5.70797848]
[1751993327785,0.9701,2578.6,2578.3,3.8784895]
[1751993328480,0.9701,2578.6,2578.5,3.87822377]
[1751993328886,0.7765,2578.6,2578.5,3.87822377]
[1751993331786,0.9655,2578.8,2578.6,3.87799421]
[1751993332288,0.9655,2578.8,2578.7,3.87792298]
[1751993332691,0.9655,2578.8,2578.6,3.87799901]
[1751993332879,0.9655,2578.8,2578.7,3.87792298]
[1751993335316,0.9655,2578.8,2578.4,3.87824973]
[1751993335599,0.9655,2578.8,2578.4,9.82824973]
[1751993335803,4.63042298,2578.7,2578.3,0.1936]
[1751993336101,4.63042298,2578.7,2578.5,3.87822377]
[1751993336102,0.1936,2578.6,2578.5,3.87822377]
[1751993336310,0.7525,2578.7,2578.4,3.87834296]
[1751993336311,0.7525,2578.7,2578.4,3.89776212]
[1751993336591,0.7525,2578.7,2578.4,3.8783644]
[1751993336765,0.7525,2578.7,2578.5,3.87820696]
[1751993336972,0.7525,2578.7,2578.4,0.01943527]
[1751993337166,0.80097403,2578.7,2578.3,10.02106101]
[1751993337376,0.1936,2578.6,2578.3,9.82746101]
[1751993337759,0.1936,2578.6,2578.3,3.87846101]
[1751993338177,0.8247,2578.5,2578.2,0.1936]
[1751993338590,3.87844181,2578.4,2578.2,0.1936]
[1751993338805,3.87844181,2578.4,2577.9,4.07266421]
[1751993338806,0.7509,2578.3,2577.9,4.07266421]
[1751993339100,0.9445,2578.3,2578.0,3.87896476]
[1751993339466,0.9445,2578.3,2578.1,3.8787925]
[1751993339664,0.9445,2578.3,2578.1,3.8787167]
[1751993340404,0.9445,2578.3,2578.2,3.87867504]
[1751993340561,0.7509,2578.3,2578.2,3.87867504]
[1751993341412,0.7509,2578.3,2578.2,4.65637876]
[1751993341568,0.9521,2578.6,2578.3,3.87850839]
[1751993341878,0.9521,2578.6,2578.3,3.87845239]
[1751993342605,0.9521,2578.6,2578.4,3.87836117]
[1751993342900,0.9521,2578.6,2578.4,3.87835138]
[1751993343115,0.9521,2578.6,2578.5,3.87822377]
[1751993343273,0.7537,2578.8,2578.5,3.8781558]
[1751993343592,0.1936,2578.7,2578.5,3.8781558]
[1751993344096,0.1936,2578.7,2578.6,3.87807337]
[1751993344394,0.1936,2578.7,2578.4,0.85344924]
[1751993344594,0.1936,2578.7,2578.4,3.87830505]
[1751993344762,0.1936,2578.7,2578.3,3.87837598]
[1751993344958,0.1936,2578.7,2578.6,3.87807337]
[1751993345389,0.7537,2578.8,2578.6,3.87798354]
[1751993345588,0.7537,2578.8,2578.7,3.87792298]
[1751993346808,0.7537,2578.8,2578.5,3.89758787]
[1751993347108,0.7537,2578.8,2578.6,3.87793102]
[1751993347507,0.7537,2578.8,2578.7,3.87792298]
[1751993349503,0.7537,2578.8,2578.6,3.87799409]
[1751993349797,0.7537,2578.8,2578.5,4.88217224]
[1751993349798,0.7537,2578.8,2578.5,4.8821672]
[1751993349982,0.7537,2578.8,2578.5,4.90159871]
[1751993350170,0.7537,2578.8,2578.6,3.87804928]
[1751993350981,0.7537,2578.8,2578.5,4.90160256]
[1751993351177,0.7537,2578.8,2578.6,3.87800349]
[1751993352399,0.7537,2578.8,2578.7,3.87792298]
[1751993352582,6.1416,2578.9,2578.7,3.87792298]
[1751993352784,6.1416,2578.9,2578.6,4.77532209]
[1751993353103,6.19007027,2578.9,2578.5,4.88214292]